Cogmind - Beta 10 X2 @@@ ROGUE MODE // 2020.07.30 @ 15:18:11 Player: tourn Result: Self-destructed Performance ------------- Evolutions (0) 0 Regions Visited (4) 800 Robots Destroyed (25) 125 Value Destroyed (449) 449 Prototype IDs (23) 460 Alien Tech Used (0) 0 Bonus (112) 112 TOTAL SCORE: 1946 Bonus ------- Follower Combat Kills 42 Aligned with FarCom 300 Friendly Fire -230 Cogmind --------- Core Integrity 122/250 Matter 270/300 Energy 160/160 System Corruption 0% Temperature Cool (0) Movement Walking (180) Ox2 Location -9/Mines Parts ------- > --- POWER (1) -------- Light Nuclear Core > --- PROPULSION (2) --- Aluminum Leg Aluminum Leg > --- UTILITY (2) ------ Large Storage Unit Large Storage Unit > --- WEAPON (2) ------- Heavy EM Pulse Gun Heavy EM Pulse Gun > --- INVENTORY (16) --- Ion Engine Reinforced Deuterium Engine Reinforced Deuterium Engine Fission Core Improved Heat Sink High-capacity Matter Pod (200) Signal Interpreter Hardened Light Armor Plating Hardened Light Armor Plating Hardened Light Armor Plating Heavy EM Pulse Gun Heavy EM Pulse Gun YOLO Cannon Assault Rifle Hammer Peak State ------------ > --- POWER ------------ Light Nuclear Core > --- PROPULSION ------- Aluminum Leg Aluminum Leg > --- UTILITY ---------- Large Storage Unit Large Storage Unit > --- WEAPON ----------- Heavy EM Pulse Gun Heavy EM Pulse Gun > --- INVENTORY -------- Ion Engine Reinforced Deuterium Engine Reinforced Deuterium Engine Fission Core Improved Heat Sink High-capacity Matter Pod Signal Interpreter Hardened Light Armor Plating Hardened Light Armor Plating Hardened Light Armor Plating Heavy EM Pulse Gun Heavy EM Pulse Gun YOLO Cannon Assault Rifle Hammer [Rating: 16] Favorites ----------- Power Light Nuclear Core Engine Ion Engine Power Core Light Nuclear Core Propulsion Aluminum Leg Leg Aluminum Leg Utility Large Storage Unit Storage Large Storage Unit Weapon Assault Rifle Energy Gun Heavy EM Pulse Gun Ballistic Gun Assault Rifle Impact Weapon Hammer Build | -11 -10 -10 -10 -9 ------- Run | Scr Mat Min Exi Min Slots Evolved . | . . . . . Power . | . . . . . Propulsion . | . . . . . Utility . | . . . . . Weapon . | . . . . . Parts Attached 12 | . 8 1 . 3 Power 2 | . 2 . . . Engine 1 | . 1 . . . Core 1 | . 1 . . . Reactor . | . . . . . Propulsion 1 | . . 1 . . Treads . | . . . . . Leg 1 | . . 1 . . Wheel . | . . . . . Hover . | . . . . . Flight . | . . . . . Utility 2 | . 2 . . . Device . | . . . . . Storage 2 | . 2 . . . Processor . | . . . . . Hackware . | . . . . . Protection . | . . . . . Artifact . | . . . . . Weapon 7 | . 4 . . 3 Energy Gun 4 | . 2 . . 2 Energy Cannon . | . . . . . Ballistic Gun 2 | . 2 . . . Ballistic Cannon . | . . . . . Launcher . | . . . . . Special Weapon . | . . . . . Impact Weapon 1 | . . . . 1 Slashing Weapon . | . . . . . Piercing Weapon . | . . . . . Special Melee Weapon . | . . . . . Unidentified Prototypes . | . . . . . Parts Lost 4 | . 4 . . . Power 1 | . 1 . . . Propulsion . | . . . . . Utility . | . . . . . Weapon 3 | . 3 . . . Highest Loss Streak 3 | . 3 . . . Average Slot Usage (%) 99 | . 98 100 100 100 Engine 3 | . 8 . . . Core 10 | . 5 14 14 14 Leg 28 | . 28 28 28 28 Storage 27 | . 27 28 28 28 Energy Gun 10 | . 5 14 14 12 Ballistic Gun 17 | . 22 14 14 13 Naked Turns . | . . . . . Heaviest Build 43 | 13 42 42 42 43 Greatest Support 20 | 20 20 20 20 20 Greatest Overweight (x) 2 | . 2 2 2 2 Average Overweight (x) 1 | . 1 2 2 2 Largest Inventory Capacity 16 | . 16 16 16 16 Average Capacity 15 | . 15 16 16 16 Most Carried 16 | . 16 16 16 16 Average Carried 13 | . 10 16 15 16 Final Capacity 16 | 6 16 16 16 16 Final Carried 16 | 6 16 16 16 16 Class Distribution -------------------- 100% | Mutant Dominant Class ---------------- Mutant | -10/Materials Mutant | -10/Mines Mutant | -10/Exiles Mutant | -9/Mines Resources | -11 -10 -10 -10 -9 ----------- Run | Scr Mat Min Exi Min Matter Collected 743 | 177 465 71 . 30 Remotely . | . . . . . Salvage Created 761 | . 452 242 . 67 Parts 46 | . 29 15 . 2 Haulers Intercepted 2 | . 2 . . . Recyclers Shooed . | . . . . . Parts Field Recycled . | . . . . . Retrieved Matter . | . . . . . Parts Self-Destructed . | . . . . . Prevented . | . . . . . Kills | -11 -10 -10 -10 -9 ------- Run | Scr Mat Min Exi Min Combat Hostiles Destroyed 20 | . 10 6 . 4 Guns 18 | . 10 4 . 4 AOE 2 | . . 2 . . Classes Destroyed 6 | . 4 1 . 1 Builder 1 | . . 1 . . Hauler 2 | . 2 . . . Recycler 1 | . 1 . . . Swarmer 11 | . 6 3 . 2 Grunt 8 | . 4 4 . . Assembled 2 | . . . . 2 Best Kill Streak 4 | . 3 4 . 2 Combat Bots Only 4 | . 3 4 . 2 Max Kills in Single Turn 3 | . 1 3 . 2 Gunslinging 1 | . . . . 1 Exploded 2 | . . 2 . . Melee . | . . . . . Uniques/NPCs Destroyed . | . . . . . Combat | -11 -10 -10 -10 -9 -------- Run | Scr Mat Min Exi Min Damage Taken 763 | . 566 129 . 68 Core 128 | . 95 . . 33 Absorbed by Shields . | . . . . . Core Remaining (%) 100 | 100 . . . . Volleys Fired 63 | . 44 9 . 10 Largest 2 | . 2 2 . 2 Hottest 85 | . 85 65 . 65 Shots Fired 126 | . 88 18 . 20 Gun 126 | . 88 18 . 20 Cannon . | . . . . . Launcher . | . . . . . Special . | . . . . . Kinetic 99 | . 80 9 . 10 Thermal 8 | . 8 . . . Explosive . | . . . . . Electromagnetic 19 | . . 9 . 10 Robot Hit Streak 10 | . 10 5 . 8 Robot Miss Streak 4 | . 3 4 . 3 Penetration Max . | . . . . . Secondary Targets 3 | . 1 1 . 1 Max Gunslinging Chain 1 | . 1 1 . 1 Shots Hit Robots 77 | . 54 8 . 15 Core Hits 37 | . 22 9 . 6 Critical Hits 1 | . 1 . . . Critical Kills . | . . . . . Critical Parts Destroyed 1 | . 1 . . . Melee Attacks 8 | . . . . 8 Impact 8 | . . . . 8 Slashing . | . . . . . Piercing . | . . . . . Sneak Attacks . | . . . . . Combat Hostiles . | . . . . . Follow-up Attacks . | . . . . . Damage Inflicted 1234 | . 623 395 . 216 Guns 993 | . 623 154 . 216 Cannons . | . . . . . Explosions 241 | . . 241 . . Melee . | . . . . . Ramming . | . . . . . Kinetic 718 | . 543 74 . 101 Thermal 321 | . 80 241 . . Explosive . | . . . . . Electromagnetic 195 | . . 80 . 115 Impact . | . . . . . Slashing . | . . . . . Piercing . | . . . . . Highest Corruption . | . . . . . Average Corruption . | . . . . . Corruption Purged . | . . . . . Overload Shots . | . . . . . Overflow Damage . | . . . . . Projectiles . | . . . . . Explosions . | . . . . . Melee . | . . . . . Knockbacks . | . . . . . Impact . | . . . . . Kinetic . | . . . . . Secondary . | . . . . . Self-Inflicted Damage 71 | . . 71 . . Shots 2 | . . 2 . . Rammed . | . . . . . Targets Rammed . | . . . . . Kicked . | . . . . . Crushed . | . . . . . Highest Temperature 180 | . 180 60 . 45 Average Temperature 37 | . 58 23 . 19 Received Heat Transfer 165 | . 141 24 . . Siege Activations . | . . . . . Robots Corrupted . | . . . . . Combat Hostiles . | . . . . . Parts Fried . | . . . . . Impact Corruptions . | . . . . . Robots Melted . | . . . . . Combat Hostiles . | . . . . . Parts Melted . | . . . . . Heat Transferred 435 | . 185 250 . . Parts Sabotaged . | . . . . . Parts Stolen . | . . . . . Parts Stripped . | . . . . . Power Chain Reactions . | . . . . . Missiles Intercepted . | . . . . . Alert | -11 -10 -10 -10 -9 ------- Run | Scr Mat Min Exi Min Peak Influence 224 | . 158 224 . 74 Average Influence 66 | . 50 89 . 70 Maximum Alert Level 1 | . . 1 . . Low Security (%) 90 | . 100 69 . 100 Level 1 9 | . . 30 . . Level 2 . | . . . . . Level 3 . | . . . . . Level 4 . | . . . . . Level 5 . | . . . . . High Security . | . . . . . Max Security . | . . . . . Squads Dispatched 1 | . 1 . . . Investigation . | . . . . . Extermination . | . . . . . Reinforcement 1 | . 1 . . . Assault . | . . . . . Garrison . | . . . . . Intercept . | . . . . . Construction Impeded . | . . . . . Haulers Reinforced . | . . . . . Stealth | -11 -10 -10 -10 -9 --------- Run | Scr Mat Min Exi Min Distress Signals . | . . . . . Communications Jammed . | . . . . . Distress Signals . | . . . . . Times Spotted 29 | . 19 7 . 3 Peak Tracking Total 4 | . 4 3 . 2 Tactical Retreats . | . . . . . Traps | -11 -10 -10 -10 -9 ------- Run | Scr Mat Min Exi Min Traps Triggered 1 | . 1 . . . Indirectly . | . . . . . Trap Hack Attempts . | . . . . . Triggered . | . . . . . Disarmed . | . . . . . Reprogrammed . | . . . . . Reused . | . . . . . Traps Extracted . | . . . . . Installed . | . . . . . Triggered . | . . . . . Machines | -11 -10 -10 -10 -9 ---------- Run | Scr Mat Min Exi Min Machines Disabled 6 | . . 6 . . Max in Single Turn 6 | . . 6 . . Machines Sabotaged . | . . . . . Garrisons Compromised . | . . . . . Overloaded Fab Kills . | . . . . . Fab Network Shutdowns . | . . . . . Hacking | -11 -10 -10 -10 -9 --------- Run | Scr Mat Min Exi Min Machines Accessed 8 | . 6 1 1 . Terminals 7 | . 6 1 . . Fabricators . | . . . . . Repair Stations . | . . . . . Recycling Units . | . . . . . Scanalyzers . | . . . . . Garrison Access . | . . . . . Total Hacks 21 | . 15 5 1 . Successful 8 | . 6 1 1 . Failed 13 | . 9 4 . . Catastrophic 6 | . 4 2 . . Database Lockouts . | . . . . . Manual 21 | . 15 5 1 . Terminals 20 | . 15 5 . . Fabricators . | . . . . . Repair Stations . | . . . . . Recycling Units . | . . . . . Scanalyzers . | . . . . . Garrison Access . | . . . . . Terminal Hacks 7 | . 5 1 1 . Branch Access Points 1 | . 1 . . . Unreport Threat 4 | . 3 1 . . Registered Components 1 | . 1 . . . EX-Prototype ID Bank 1 | . . . 1 . Fabricator Hacks . | . . . . . Repair Station Hacks . | . . . . . Recycling Unit Hacks . | . . . . . Scanalyzer . | . . . . . Garrison Access Hacks . | . . . . . Unauthorized Hacks 1 | . 1 . . . Terminals 1 | . 1 . . . Botnet 1 | . 1 . . . Fabricators . | . . . . . Repair Stations . | . . . . . Recycling Units . | . . . . . Scanalyzers . | . . . . . Garrison Access . | . . . . . Data Cores Recovered . | . . . . . Used . | . . . . . Hacking Detections 5 | . 4 1 . . Full Trace Events 1 | . 1 . . . Feedback Events . | . . . . . Feedback Blocked . | . . . . . Robot Schematics Acquired . | . . . . . Robots Built . | . . . . . Matter . | . . . . . Time . | . . . . . Total Robot Build Rating . | . . . . . Part Schematics Acquired . | . . . . . Parts Built . | . . . . . Matter . | . . . . . Time . | . . . . . Total Part Build Rating . | . . . . . Parts Repaired . | . . . . . Time . | . . . . . Parts Recycled . | . . . . . Recycled Matter . | . . . . . Retrieved Matter . | . . . . . Retrieved Components . | . . . . . Parts Scanalyzed . | . . . . . Part Schematics Acquired . | . . . . . Parts Damaged . | . . . . . Bothacking | -11 -10 -10 -10 -9 ------------ Run | Scr Mat Min Exi Min Used RIF Installer . | . . . . . Robots Hacked . | . . . . . Non-combat . | . . . . . Combat . | . . . . . Robot Hacks Applied . | . . . . . Relay Couplers Released . | . . . . . Robots Rewired . | . . . . . Allies Hacked . | . . . . . Hacks Repelled . | . . . . . Allies | -11 -10 -10 -10 -9 -------- Run | Scr Mat Min Exi Min Total Allies 3 | . . 3 . . Largest Group 3 | . . 3 1 1 Highest-Rated Group 40 | . . 40 13 13 Highest-Rated Ally 16 | . . 16 13 13 Total Orders . | . . . . . Ally Attacks 23 | . . 22 . 1 Total Damage 241 | . . 224 . 17 Kills 2 | . . 1 . 1 Allies Corrupted . | . . . . . Allies Melted . | . . . . . Intel | -11 -10 -10 -10 -9 ------- Run | Scr Mat Min Exi Min Robot Analysis Total . | . . . . . Derelict Logs Recovered 1 | . . . . 1 Drone Launches . | . . . . . Drone Recoveries . | . . . . . Exploration | -11 -10 -10 -10 -9 ------------- Run | Scr Mat Min Exi Min Turns Passed 2416 | . 1019 605 398 394 Spaces Moved 1218 | 1 492 321 218 186 Core . | . . . . . Treads . | . . . . . Legs 1218 | 1 492 321 218 186 Wheels . | . . . . . Hover . | . . . . . Flight . | . . . . . Fastest Speed 120 | 120 120 180 180 180 Average Speed 178 | 120 175 180 180 180 Slowest Speed 180 | 120 180 180 180 180 Overloaded Moves . | . . . . . Propulsion Burnouts . | . . . . . Robots Hopped . | . . . . . Cave-ins Triggered . | . . . . . Exploration Rate (%) 48 | 2 87 59 61 34 Regions Visited 4 Branch Regions 3 Pre-discovered Areas 1 | . . . . 1 Known Exits Taken 1 | . 1 . . . Unknown Exits Taken 3 | 1 . 1 1 . Scrap Searched 2 | . . 2 . . Spaces Dug . | . . . . . Terrain Destroyed 37 | . . 37 . . Melee . | . . . . . Projectile . | . . . . . AOE 37 | . . 37 . . Actions | -11 -10 -10 -10 -9 --------- Run | Scr Mat Min Exi Min Total 1330 | . 562 331 226 211 Wait 7 | . 3 . . 4 Move 1214 | . 491 320 217 186 Hop . | . . . . . Pick Up 17 | . 13 . 4 . Fast Attach 2 | . 2 . . . Attach 4 | . 4 . . . Detach 1 | . 1 . . . Swap 6 | . 2 1 . 3 Drop 8 | . 2 1 5 . Fire 63 | . 44 9 . 10 Melee 8 | . . . . 8 Ram . | . . . . . Kick . | . . . . . Crush . | . . . . . Escape Stasis . | . . . . . Rewire . | . . . . . Trap . | . . . . . Miscellaneous . | . . . . . Route ------- -11/Scrapyard -10/Materials (discovered 4 exits: [*Mat x2] / *Min x2) -10/Mines -10/Exiles -9/Mines History --------- Turn | Location | Event 1 | -11/Scrapyard | Discovered new exit (range 0) 1 | -11/Scrapyard | Entered Materials 260 | -10/Materials | Identified exit to Mines 317 | -10/Materials | Build established: Mutant 323 | -10/Materials | Discovered new exit (range 16) 660 | -10/Materials | Lost 3 parts (1p2w) 894 | -10/Materials | Discovered new exit (range 12) 1020 | -10/Materials | Entered Mines 1055 | -10/Mines | Assisted by bots powering up and referring to "LRC-V3" 1618 | -10/Mines | Deemed a non-threat by the Exiles lab entrance 1618 | -10/Mines | Discovered new exit (range 5) 1625 | -10/Mines | Entered Exiles 1625 | -10/Exiles | Accompanied by 1 ally 1679 | -10/Exiles | Met 8R-AWN 1710 | -10/Exiles | Met EX-HEX 1760 | -10/Exiles | Met EX-BIN 1780 | -10/Exiles | Aligned with FarCom system 1782 | -10/Exiles | Given EX-Vault access code 1823 | -10/Exiles | Opened EX-Vault 1838 | -10/Exiles | Found YOLO Cannon 1875 | -10/Exiles | Warned to stay clear of 0b10 Research branches 1927 | -10/Exiles | Met EX-DEC 2006 | -10/Exiles | Discovered new exit (range 10) 2023 | -10/Exiles | Left Exiles lab with YOLO Cannon 2023 | -10/Exiles | Entered Mines 2023 | -9/Mines | Accompanied by 1 ally 2107 | -9/Mines | Learned location of Zion (-7) 2349 | -9/Mines | Excavation squad dispatched 2349 | -9/Mines | A large section of the Mines collapsed 2357 | -9/Mines | Core integrity fell below 50% 2417 | -9/Mines | Self-destructed Last Messages --------------- 02006_ EXIT=FOUND LOCATION=UNKNOWN GOAL=ESCAPE 02023_ Receiving FarCom transmissions... 02023_ S-10 Pest destroyed. 02023_ Switching to secondary target: S-10 Pest. 02023_ S-10 Pest destroyed. 02026_ Acquired 3 matter. 02107_ Acquired derelict log, extracted data. World map updated: -7/Zion. 02282_ K-01 Serf collects debris. 02349_ Trooper 1b crushed by falling debris. 02349_ ALERT: Suspicious cave-in, suspected derelict activity in mines. Dispatching escorted excavation squad. 02349_ as-28312 sneak attacks. 02349_ Trooper 1b destroyed. 02352_ as-28312 destroyed. 02358_ as-51255 destroyed. 02361_ Acquired 20 matter. 02363_ Acquired 7 matter. Map ----- +----------------------------------------------------+ | ????????????????????# #????????????####??? | | ????????????????????## ##?????????????????? | | ?????????????????????## ##????????????????? | | ??????????????????????## ##???????????????? | | ???????????????????????## #???????????????? | | ????????????????????????# ###############?? | | ???????????????????????## #?? | | ??????????????????????## #?? | | ????????????????????### ###### #### #?? | | ???????????????????## #????# #???? ??? | | ???????????????????# ## #????# #??? #?? | | ???????????????????# ######????# #??? #?? | | ???????????????????## #?????????# ###? #?? | | ????????????????????#### #?????##### ## #?? | | ??????????###??????????# #????## #?? | | ?????????? ??????????# #????# ??? | | ??????????# ??????????# #????? ???? | | ??????????# ??????????# #?????? #???? | | ?????????## ##????????# #???????# ##??? | | ?????????# #?????#### #????????# #??? | | ?????????# #????## #?????????# #??? | | ?????????# #???## ####???????# #??? | | ?????????# ####?## ######### #???? | | ?????????# # ###### #???? | | ?????????# ##"#### # u #???? | | ????????# ##%## ######@ ######### #???? | | ???????# #"## ###???######???????## ##???? | | ???????# #" ###????????????####### ##????? | | ???????## #######?????????????# #?????? | | ????????####??####??????????????# ##### #?????? | | ??????????????????????????#####?# #???# #?????? | | ?????????????????????????## ### #???# ?????? | | ?????????????????????????# #???####????? | | ?????????????????????????# """ ####???????????? | | ?????????????????????????# """ ##?????????????? | | ??????????????????######## """ ##????????????? | | ??????????????????# s #????????????? | | ???????????????# g ##### ### #????????????? | | ????????????????????????# #?## ##????????????? | | ????????????????????????#s#######?????????????? | | ????????????????????????# #???????????????? | | ???????????????????????##s### #???????????????? | | ??????????????????????## ##? #???????????????? | | ??????????????????????# ## ##??????????????? | | ??????????????????????# ##?????????????? | | ??????????????????????## #?????????????? | | ???????????????????????# = #?????????????? | | ???????????????????????# *%% #?????????????? | | ???????????????????????##%=## ##?????????????? | | ????????????????????????####?###??????????????? | +----------------------------------------------------+ Best States ------------- Heat Dissipation 25 Energy Generation 14 Energy Capacity 250 Matter Stores 300 Matter Capacity 300 Sight Range 16 Terrain Scan Density 10 Evasion (%) 40 Item Schematics ----------------- None Robot Schematics ------------------ None Fabricated ------------ Nothing Alien Tech Used ----------------- None Achievements -------------- None Challenges ------------ None Game ------ Seed RecoilReflectivePlating Manual? 0 Play Time 00:14:12 Cumulative 143.9 hours Start 2020.07.21 @ 20:35:05 End 2020.07.30 @ 15:18:11 Sessions 3 Manual Loads 0 Difficulty Rogue Special Mode None Game No. 49 Rogue 49 Adventurer 0 Explorer 0 Win Type - Total 3 Types 3/0/0/0/0/0/0 Lore% 55 Gallery% 62 Achievement% 40 Wizard Run 0 Options --------- ASCII 0 Keyboard 1 Movement Vi Keybinds 0 Fullscreen 1 Font 18/SmallcapsGlow Map View 76x50 Tactical HUD 1 Map Filters NONE Filters NONE Steam 1 RUN: 71764e3b-3c39-4b51-9931-5734e7a0bd70